bitfinex-derivatives/quotes_SOLF0:USTF0_20241015
["timestamp","ask_amount","ask_price","bid_price","bid_amount"]
[1729000170321,39.97,156.74,156.61,1.17323393]
[1729000170525,39.97,156.74,156.66,3.1919]
[1729000170826,39.97,156.71,156.59,39.97]
[1729000171027,2.7922,156.7,156.59,39.97]
[1729000171433,39.97,156.74,156.59,39.97]
[1729000171628,39.97,156.74,156.6,1.17336033]
[1729000172330,39.97,156.69,156.6,1.17336033]
[1729000172535,39.97,156.69,156.58,12.6553]
[1729000172833,43.1616,156.69,156.58,12.6553]
[1729000173140,39.97,156.69,156.58,12.6553]
[1729000173729,39.97,156.69,156.58,1.2953]
[1729000174225,39.97,156.66,156.58,1.2953]
[1729000174637,43.1621,156.66,156.59,3.1935]
[1729000174837,39.97,156.66,156.58,1.2953]
[1729000175736,39.97,156.66,156.59,3.1934]
[1729000175933,24.53,156.66,156.56,2.7365]
[1729000176135,3.1925,156.64,156.58,3.1937]
[1729000176439,3.9884,156.67,156.59,1.17324696]
[1729000176632,3.9884,156.67,156.6,1.17324696]
[1729000176828,24.53,156.68,156.61,1.17324696]
[1729000177033,2.7419,156.73,156.62,1.17324696]
[1729000177234,24.53,156.72,156.62,1.17324696]
[1729000177531,24.53,156.7,156.58,11.82]
[1729000177834,24.53,156.7,156.62,3.1927]
[1729000178029,24.53,156.7,156.57,1.3135]
[1729000178235,24.53,156.67,156.58,1.17329859]
[1729000178638,24.53,156.67,156.56,1.2948]
[1729000178836,24.53,156.67,156.57,1.1734773]
[1729000179035,24.53,156.67,156.56,1.2948]
[1729000179637,24.53,156.67,156.57,1.17338005]
[1729000179841,39.86,156.66,156.57,1.17338005]
[1729000180035,39.86,156.66,156.53,41.1735]
[1729000180036,39.86,156.64,156.53,1.3135]
[1729000180235,39.86,156.64,156.54,1.17353464]
[1729000180236,2.7966,156.63,156.54,1.17353464]
[1729000180437,2.7966,156.63,156.57,3.1938]
[1729000181040,2.7966,156.63,156.53,1.3135]
[1729000181646,2.7966,156.63,156.52,1.3662]
[1729000182053,39.86,156.61,156.52,1.3662]
[1729000182245,2.7966,156.63,156.52,1.3662]
[1729000183242,2.7966,156.63,156.54,39.86]
[1729000183648,2.7966,156.63,156.52,1.3662]
[1729000184548,39.86,156.61,156.52,1.3662]
[1729000184941,39.86,156.61,156.55,3.1941]
[1729000185145,39.86,156.61,156.52,1.3662]
[1729000185849,39.86,156.61,156.57,3.1938]
[1729000186052,39.86,156.61,156.52,1.3662]
[1729000186945,39.86,156.61,156.57,3.1938]
[1729000187154,39.86,156.61,156.52,1.3662]
[1729000187352,39.86,156.61,156.54,3.1944]
[1729000187552,39.86,156.61,156.52,1.3662]
[1729000188448,39.86,156.61,156.55,3.1942]
[1729000188657,43.07472123,156.61,156.55,3.1942]
[1729000188850,39.86,156.59,156.48,1.3442]
[1729000189158,39.86,156.59,156.48,2.6999]
[1729000190251,39.86,156.54,156.41,39.86]
[1729000190457,39.86,156.54,156.49,3.1955]
[1729000190757,39.86,156.54,156.43,1.3557]
[1729000190953,43.0547,156.54,156.47,3.1958]
[1729000191154,43.0547,156.54,156.43,1.3557]
[1729000191155,3.9831,156.53,156.43,1.3557]
[1729000191353,39.86,156.49,156.36,39.86]
[1729000191659,3.9831,156.53,156.41,39.86]
[1729000191954,341.0,156.62,156.44,39.86]
[1729000192156,39.86,156.64,156.5,39.86]
[1729000192351,3.22870449,156.69,156.5,39.86]
[1729000192660,3.22870449,156.69,156.48,11.82]
[1729000192661,39.86,156.65,156.52,39.86]
[1729000192954,42.5338,156.68,156.55,39.86]
[1729000193146,42.5338,156.68,156.56,1.3392]
[1729000193352,42.5338,156.68,156.56,2.6854]
[1729000194049,42.5338,156.68,156.59,3.1934]
[1729000194251,42.5338,156.68,156.56,2.6854]
[1729000195058,42.5338,156.68,156.62,3.1927]
[1729000195255,41.2375,156.68,156.56,2.6854]
[1729000195451,1.3906,156.67,156.56,2.6854]
[1729000196145,1.3906,156.67,156.61,3.1929]
[1729000196351,1.3906,156.67,156.56,2.6854]
[1729000196753,41.2375,156.68,156.56,2.6854]
[1729000196959,1.3996,156.67,156.56,2.6854]
[1729000197555,1.3996,156.67,156.57,39.86]
[1729000197953,1.3996,156.67,156.64,3.1924]
[1729000198354,1.3996,156.67,156.6,3.1933]
[1729000198556,1.3996,156.67,156.57,39.86]
[1729000198851,41.2375,156.68,156.57,39.86]
[1729000199053,41.2375,156.68,156.56,2.6854]
[1729000199352,44.4292,156.68,156.59,3.1934]
[1729000199554,41.2375,156.68,156.56,2.6854]
[1729000201053,1.3775,156.68,156.56,2.6854]
[1729000201649,39.86,156.69,156.62,3.1927]
[1729000201857,39.86,156.69,156.56,2.6854]
[1729000202156,39.86,156.69,156.57,39.86]
[1729000202354,1.3996,156.71,156.6,39.86]
[1729000202556,1.3996,156.71,156.56,2.6854]
[1729000202557,39.86,156.7,156.57,39.86]
[1729000202755,43.0513,156.7,156.6,3.1931]
[1729000202962,39.86,156.68,156.56,2.6854]
[1729000203362,43.0517,156.68,156.6,3.1931]
[1729000203659,39.86,156.68,156.56,14.3254]
[1729000203963,24.53,156.64,156.59,3.1934]
[1729000204262,24.53,156.62,156.53,1.3774]
[1729000204959,25.8898,156.62,156.49,38.8077]
[1729000205152,25.8898,156.62,156.49,40.2139]
[1729000205358,25.8898,156.62,156.49,15.6839]
[1729000205359,1.3598,156.62,156.49,15.6839]
[1729000205553,2.6487,156.63,156.61,3.193]
[1729000205554,1.3275,156.63,156.61,3.193]
[1729000205762,1.3275,156.63,156.55,24.53]
[1729000205958,27.211,156.67,156.55,24.53]
[1729000206757,27.211,156.67,156.61,3.1929]
[1729000207065,27.211,156.67,156.55,24.53]
[1729000207272,27.211,156.67,156.63,3.1925]
[1729000207761,27.211,156.67,156.64,3.1923]
[1729000207960,1.3598,156.67,156.57,24.53]
[1729000208260,24.53,156.69,156.58,4.0131]
[1729000208459,24.53,156.69,156.64,3.1924]
[1729000209254,24.53,156.69,156.63,3.1926]
[1729000209454,24.53,156.69,156.58,4.0131]
[1729000209660,27.7219,156.67,156.58,2.657]
[1729000209866,24.53,156.67,156.58,2.657]
[1729000210063,24.53,156.69,156.58,2.657]
[1729000210363,24.53,156.7,156.58,2.657]
[1729000210568,24.53,156.68,156.58,2.657]
[1729000211866,24.53,156.72,156.59,24.53]
[1729000212163,1.3277,156.74,156.65,24.53]
[1729000212364,1.3173,156.79,156.67,24.53]
[1729000212666,1.4029,156.81,156.72,24.53]
[1729000213063,24.53,156.79,156.68,1.3989]
[1729000213563,1.3963,156.83,156.73,24.53]
[1729000213767,0.12518,156.84,156.75,24.53]
[1729000213959,0.12518,156.84,156.75,36.17]
[1729000214158,0.12518,156.84,156.8,24.53]
[1729000214366,0.12518,156.84,156.83,3.1886]
[1729000214559,1.4029,156.95,156.83,36.17]
[1729000214762,25.8715,156.99,156.86,24.53]
[1729000214966,24.53,156.96,156.83,36.17]
[1729000215159,3.20554856,156.99,156.83,11.64]
[1729000215363,24.53,156.99,156.87,24.53]
[1729000215762,24.53,156.99,156.83,11.64]
[1729000215763,39.8,156.99,156.86,39.8]
[1729000215968,39.8,156.99,156.9,3.1871]
[1729000215969,42.9854,156.99,156.9,3.1871]
[1729000216267,39.8,156.96,156.83,51.44]
[1729000216467,39.8,156.96,156.81,1.2974]
[1729000216468,39.8,156.94,156.81,52.7374]
[1729000216667,39.8,156.94,156.81,39.8]
[1729000216865,39.8,156.92,156.81,39.8]
[1729000217064,39.8,156.94,156.88,3.1876]
[1729000217269,39.8,156.94,156.83,39.8]
[1729000217468,39.8,156.97,156.83,51.44]
[1729000217661,39.8,156.97,156.86,39.8]
[1729000217967,39.8,156.99,156.86,39.8]
[1729000218163,39.8,156.99,156.94,3.1862]
[1729000218364,1.3415,157.01,156.87,1.3287]
[1729000218666,39.8,157.0,156.93,3.1865]
[1729000218865,39.8,156.97,156.84,39.8]
[1729000219162,39.8,156.97,156.84,41.1287]
[1729000219767,39.8,156.97,156.87,39.8]
[1729000219966,39.8,156.97,156.84,41.1287]
[1729000220572,39.8,156.97,156.92,3.1867]
[1729000221172,39.8,156.97,156.84,41.1287]
[1729000221665,1.3415,157.01,156.84,41.1287]
[1729000221666,1.3415,157.01,156.89,39.8]
[1729000221868,39.8,157.02,156.9,12.9805]
[1729000222061,39.8,157.02,156.91,39.8]
[1729000222260,39.8,157.02,156.9,14.3066]
[1729000222468,39.8,157.0,156.9,12.9805]
[1729000223570,39.8,156.91,156.7,9.54247253]
[1729000223773,39.8,156.88,156.78,1.3434]
[1729000224072,39.8,156.93,156.8,39.8]
[1729000224263,39.8,156.93,156.81,1.2805]
[1729000224973,39.8,156.93,156.89,3.1873]
[1729000225268,1.3818,156.97,156.83,39.8]
[1729000225470,41.1818,156.97,156.83,39.8]
[1729000225864,41.1818,156.97,156.85,39.8]
[1729000226064,1.3818,156.97,156.86,12.04]
[1729000226270,1.3818,156.97,156.88,39.8]
[1729000226467,42.9853,157.0,156.88,39.8]
[1729000226665,1.3086,156.99,156.88,39.8]
[1729000226863,39.8,156.97,156.86,12.04]
[1729000227064,1.3086,156.99,156.87,39.8]
[1729000227266,39.8,157.02,156.91,39.8]
[1729000227465,39.8,157.02,156.96,3.1858]
[1729000227666,39.8,157.02,156.89,39.8]
[1729000227868,39.8,156.99,156.87,39.8]
[1729000228074,39.8,156.96,156.84,39.8]
[1729000228370,39.8,156.94,156.83,13.3655]
[1729000228970,39.8,156.94,156.86,3.1879]
[1729000229169,39.8,156.94,156.83,13.3655]
[1729000229371,1.36,156.93,156.83,13.3655]
[1729000229673,638.73525569,157.26,156.89,39.8]
[1729000229674,39.8,157.0,156.89,39.8]
[1729000229876,1.36,157.03,156.89,39.8]
[1729000229877,41.16,157.03,156.9,2.6578]
[1729000231179,39.8,157.01,156.9,2.6578]
[1729000231572,39.8,157.01,156.94,3.1862]
[1729000231772,39.8,156.98,156.86,39.8]
[1729000232171,39.8,156.98,156.84,51.84]
[1729000232377,39.8,156.98,156.85,1.171472]
[1729000232776,39.8,156.98,156.92,3.1867]
[1729000233077,39.8,156.98,156.84,51.84]
[1729000233387,3.1859,156.97,156.85,12.04]
[1729000233585,39.8,156.98,156.85,12.04]
[1729000233778,39.8,156.98,156.92,3.1867]
[1729000233974,39.8,156.98,156.85,12.04]
[1729000234171,39.8,157.01,156.87,39.8]
[1729000234677,1.36,157.03,156.9,39.8]
[1729000234878,41.16,157.03,156.98,3.1854]
[1729000235072,39.8,157.0,156.88,39.8]
[1729000235279,1.36,157.03,156.85,39.8]
[1729000235280,39.8,156.97,156.85,39.8]
[1729000235481,39.8,156.97,156.92,3.1866]
[1729000235676,3.1852,157.0,156.83,4.56749681]
[1729000235677,39.8,157.0,156.87,39.8]
[1729000235982,39.8,157.0,156.96,3.1858]
[1729000236171,39.8,157.0,156.9,12.04]
[1729000236674,39.8,157.02,156.9,51.84]
[1729000236873,39.8,157.02,156.91,1.3057]
[1729000237268,39.8,157.0,156.91,1.3057]
[1729000237685,39.8,157.0,156.9,12.04]
[1729000238071,3.1854,156.99,156.9,12.04]
[1729000238282,39.8,157.0,156.9,12.04]
[1729000238674,39.8,156.97,156.9,12.04]
[1729000238876,39.8,156.97,156.85,51.84]
[1729000239073,3.1862,156.95,156.88,3.1875]
[1729000239278,1.4008,156.96,156.84,13.433]
[1729000239685,1.4008,156.96,156.85,39.8]
[1729000240077,1.4008,156.96,156.86,1.17141582]
[1729000240684,42.9852,157.0,156.93,3.1864]
[1729000240877,42.9852,157.0,156.88,39.8]
[1729000240878,39.8,157.0,156.88,39.8]
[1729000241079,41.0802,157.02,156.88,39.8]
[1729000241279,41.0802,157.02,156.95,3.186]
[1729000241578,41.0802,157.02,156.9,39.8]
[1729000241782,39.8,156.97,156.84,53.233]
[1729000242174,39.8,157.0,156.87,39.8]
[1729000242778,39.8,157.0,156.93,3.1864]
[1729000242978,1.3562,157.01,156.89,39.8]
[1729000243378,1.3562,157.01,156.9,1.17106454]
[1729000243582,1.3562,157.01,156.91,12.04]
[1729000244385,1.3562,157.01,156.91,51.84]
[1729000244584,1.3562,157.01,156.92,1.17100705]
[1729000244788,1.36,157.03,156.92,1.17100705]
[1729000244986,1.36,157.03,156.93,2.7809]
[1729000246188,41.16,157.03,156.93,2.7809]
[1729000246691,41.16,157.03,156.96,3.186]
[1729000246992,41.16,157.03,156.93,2.7809]
[1729000247188,39.8,157.03,156.99,3.1853]
[1729000247489,39.8,157.03,156.93,2.7809]
[1729000248888,39.8,157.03,156.98,3.1854]
[1729000249088,39.8,157.0,156.89,108.62]
[1729000249294,39.8,157.0,156.9,1.17104723]
[1729000249488,39.8,156.98,156.94,3.1862]
[1729000249693,39.8,156.98,156.89,11.6]
[1729000249991,24.49,156.99,156.97,3.1856]
[1729000250183,24.49,156.99,156.89,11.6]
[1729000251698,24.49,156.99,156.94,3.1862]
[1729000251889,39.8,156.98,156.89,11.6]
[1729000252193,39.8,156.98,156.95,3.1861]
[1729000252395,39.8,156.98,156.88,11.6]
[1729000252786,39.8,156.98,156.96,3.1859]
[1729000252997,39.8,156.98,156.88,11.6]
[1729000253493,39.8,156.98,156.96,3.1859]
[1729000254102,39.8,157.01,156.89,6.3747]
[1729000254288,39.8,157.01,156.88,51.4]
[1729000254493,1.3562,157.06,156.88,51.4]
[1729000254494,39.8,157.03,157.01,3.1849]
[1729000254997,39.8,157.03,156.94,1.3943]
[1729000255391,39.8,157.03,156.96,3.1858]
[1729000255597,39.8,157.03,156.94,2.7542]
[1729000256695,39.8,157.03,156.94,1.3943]
[1729000257607,39.8,157.03,157.0,3.185]
[1729000257800,39.8,157.03,156.94,1.3943]
[1729000258802,41.1562,157.06,156.95,11.18]
[1729000258996,41.1562,157.06,156.95,12.505]
[1729000259196,41.1562,157.06,157.0,3.185]
[1729000259396,39.8,157.06,156.95,12.505]
[1729000259598,39.8,157.08,156.95,12.505]
[1729000259797,39.8,157.05,156.99,3.1852]
[1729000260009,39.8,157.05,156.95,12.505]
[1729000260408,39.8,157.05,157.0,3.1851]
[1729000260608,39.8,157.08,156.95,12.505]
[1729000261104,39.8,157.08,156.96,6.3719]
[1729000261305,39.8,157.08,156.99,3.1852]
[1729000261505,39.8,157.08,156.96,6.3719]
[1729000261705,39.8,157.08,156.96,46.1719]
[1729000261904,42.9836,157.08,156.99,3.1852]
[1729000262109,42.9836,157.08,156.96,39.8]
[1729000262310,39.8,157.08,156.96,39.8]
[1729000262606,2.7155,157.11,157.01,39.8]
[1729000262804,2.7155,157.11,156.95,12.505]
[1729000262805,42.5155,157.11,157.02,11.18]
[1729000263000,39.8,157.08,156.95,1.325]
[1729000263213,1.3747,157.07,156.97,11.18]
[1729000264005,1.3747,157.07,156.96,39.8]
[1729000264714,4.5586,157.07,157.0,3.185]
[1729000265012,39.8,157.06,156.95,11.18]
[1729000265314,39.8,157.08,156.94,12.5743]
[1729000265518,1.312,157.05,156.94,12.5743]
[1729000266012,53.6955,157.11,156.96,39.8]
[1729000266212,1.312,157.1,156.96,39.8]
[1729000266415,1.312,157.1,157.04,3.1842]
[1729000266614,1.312,157.1,156.99,39.8]
[1729000267009,53.6955,157.11,157.01,39.8]
[1729000267010,2.7155,157.11,157.01,39.8]
[1729000267215,2.7155,157.11,157.01,50.98]
[1729000268114,2.7155,157.11,157.01,11.18]
[1729000268115,42.5155,157.11,157.01,11.18]
[1729000268812,39.8,157.09,156.96,39.8]
[1729000269018,50.98,157.09,156.95,11.18]
[1729000269318,54.10821326,157.09,156.95,11.18]
[1729000269712,50.98,157.09,156.95,11.18]
[1729000270110,11.18,157.09,156.98,39.8]
[1729000270412,2.7155,157.11,157.01,39.8]
[1729000270616,2.7155,157.11,157.07,3.1835]
[1729000271205,2.7155,157.11,157.01,39.8]
[1729000271810,2.7155,157.11,157.08,3.1833]
[1729000272008,2.7155,157.11,157.01,39.8]
[1729000272314,2.7155,157.11,157.02,12.5509]
[1729000272911,2.7155,157.11,157.04,3.1842]
[1729000273104,2.7155,157.11,157.02,12.5509]
[1729000274018,2.7155,157.11,157.02,37.0009]
[1729000274411,2.7155,157.11,157.04,24.45]
[1729000274609,2.7155,157.11,157.09,3.1832]
[1729000274813,1.312,157.15,157.04,24.45]
[1729000275014,2.6472,157.15,157.04,24.45]
[1729000276813,1.3352,157.15,157.1,24.45]
[1729000277014,3.1796,157.28,157.14,24.45]
[1729000277212,0.12518,157.32,157.22,24.45]
[1729000277523,0.12518,157.32,157.25,24.45]
[1729000277817,0.12518,157.32,157.24,3.1801]
[1729000278014,0.12518,157.32,157.22,39.68]
[1729000278210,0.12518,157.32,157.25,39.68]
[1729000278720,0.12518,157.32,157.23,39.68]
[1729000278920,0.12518,157.32,157.25,39.68]
[1729000279323,0.12518,157.32,157.23,39.68]
[1729000279526,0.12518,157.32,157.26,3.1798]
[1729000279723,0.12518,157.32,157.2,40.994]
[1729000279922,39.80518,157.32,157.23,3.1804]
[1729000280122,39.80518,157.32,157.18,39.68]
[1729000280319,3.1789,157.31,157.18,39.68]
[1729000280525,39.80518,157.32,157.18,39.68]
[1729000280721,39.68,157.29,157.18,39.68]
[1729000281419,1.3242,157.3,157.2,39.68]
[1729000281721,0.12518,157.32,157.25,39.68]
[1729000281924,0.12518,157.32,157.26,1.2902]
[1729000282630,0.12518,157.32,157.25,11.18]
[1729000282926,39.80518,157.32,157.21,1.2902]
[1729000283915,0.12518,157.32,157.28,3.1794]
[1729000284116,0.12518,157.32,157.21,1.2902]
[1729000284721,0.12518,157.32,157.23,39.68]
[1729000284919,0.12518,157.32,157.24,3.1802]
[1729000285231,39.68,157.3,157.21,1.2902]
[1729000285521,39.68,157.3,157.23,3.1803]
[1729000285718,39.68,157.25,157.15,1.3137]
[1729000285919,39.68,157.22,157.13,12.4962]
[1729000286118,39.68,157.22,157.15,3.182]
[1729000286325,39.68,157.22,157.13,12.4962]
[1729000286928,42.4548,157.24,157.13,12.4962]
[1729000287127,42.4548,157.24,157.18,3.1815]
[1729000287425,42.4548,157.24,157.13,12.4962]
[1729000287823,1.4179,157.24,157.15,39.68]
[1729000288228,1.4179,157.24,157.17,3.1816]
[1729000288423,1.4179,157.24,157.15,39.68]
[1729000288725,39.68,157.17,156.92,3.12773596]
[1729000288926,39.68,157.15,157.01,4.2229]
[1729000289427,39.68,157.17,157.03,39.68]
[1729000289834,39.68,157.14,157.07,3.1837]
[1729000290028,39.68,157.12,157.02,11.38]
[1729000290229,1.2848,157.19,157.02,11.38]
[1729000290230,39.68,157.17,157.03,39.68]
[1729000290431,39.68,157.17,157.05,39.68]
[1729000290830,39.68,157.14,157.03,39.68]
[1729000291038,39.68,157.17,157.11,3.1827]
[1729000291631,40.9648,157.19,157.04,39.68]
[1729000291826,39.68,157.17,157.04,39.68]
[1729000292033,40.9648,157.19,157.14,3.1822]
[1729000292334,40.9648,157.19,157.08,39.68]
[1729000292530,40.9648,157.19,157.09,1.2927]
[1729000292725,40.9648,157.19,157.12,3.1826]
[1729000292926,1.2848,157.19,157.09,1.2927]
[1729000293122,1.2848,157.19,157.09,2.6051]
[1729000293530,40.9648,157.19,157.09,2.6051]
[1729000293935,44.1462,157.19,157.09,2.6051]
[1729000294129,2.7521,157.22,157.1,39.68]
[1729000294130,42.4321,157.22,157.1,39.68]
[1729000294437,2.7521,157.22,157.1,39.68]
[1729000294635,2.7521,157.22,157.1,40.9899]
[1729000295036,2.7521,157.22,157.16,3.1817]
[1729000295332,2.7521,157.22,157.1,40.9899]
[1729000295537,4.4688,157.27,157.19,3.1811]
[1729000295729,1.289,157.27,157.15,39.68]
[1729000295925,39.68,157.25,157.12,39.68]
[1729000296230,42.8607,157.23,157.17,3.1817]
[1729000296430,39.68,157.23,157.12,39.68]
[1729000296733,42.8605,157.23,157.16,3.1819]
[1729000297232,39.68,157.23,157.12,39.68]
[1729000297639,39.68,157.25,157.12,39.68]
[1729000297833,1.289,157.27,157.18,24.43]
[1729000298028,2.7084,157.31,157.19,1.3552]
[1729000298227,2.7084,157.31,157.21,24.43]
[1729000298433,1.2983,157.31,157.21,24.43]
[1729000299531,3.1792,157.3,157.23,3.1803]
[1729000299731,1.2983,157.31,157.21,24.43]
[1729000299930,1.2983,157.31,157.24,3.1803]
[1729000300131,1.2983,157.31,157.19,4.0009]
[1729000300426,1.2983,157.31,157.17,14.5817]
[1729000300427,3.1804,157.24,157.17,14.5817]
[1729000300638,24.43,157.27,157.17,11.4]
[1729000300841,1.3895,157.26,157.13,27.1301]
[1729000301138,4.5695,157.26,157.13,27.1301]
[1729000301436,1.3895,157.26,157.13,27.1301]
[1729000301740,1.3426,157.3,157.18,24.43]
[1729000301741,24.43,157.29,157.18,24.43]
[1729000301937,1.3426,157.3,157.13,27.1301]
[1729000301938,1.3426,157.3,157.2,24.43]
[1729000302132,2.6878,157.31,157.25,3.18]
[1729000302436,2.6878,157.31,157.21,3.9954]
[1729000302835,27.1178,157.31,157.21,3.9954]
[1729000303030,24.43,157.25,157.14,11.38]
[1729000303229,3.1807,157.22,157.15,3.1819]
[1729000303438,24.43,157.23,157.14,15.4866]
[1729000303831,3.1809,157.22,157.16,3.1819]
[1729000304036,24.43,157.25,157.14,15.4866]
[1729000304929,24.43,157.23,157.14,15.4866]
[1729000305333,27.6102,157.25,157.19,3.1813]
[1729000305535,24.43,157.25,157.14,15.4866]
[1729000306533,24.43,157.25,157.14,4.1066]
[1729000306744,24.43,157.22,157.14,4.1066]
[1729000306931,24.43,157.25,157.14,4.1066]
[1729000307339,24.43,157.25,157.17,3.1817]
[1729000307340,3.1805,157.24,157.17,3.1817]
[1729000307736,24.43,157.25,157.17,3.1817]
[1729000307942,3.1803,157.24,157.18,3.1814]
[1729000308130,24.43,157.25,157.14,4.1066]
[1729000308335,24.43,157.22,157.14,2.766]
[1729000308737,3.1809,157.21,157.14,2.766]
[1729000309648,5.946,157.23,157.14,2.766]
[1729000309942,2.7654,157.23,157.14,2.766]
[1729000310134,2.7654,157.23,157.18,3.1814]
[1729000310736,5.946,157.23,157.17,3.1816]
[1729000311043,25.8053,157.3,157.16,24.43]
[1729000311246,1.3858,157.29,157.17,1.2985]
[1729000312044,24.43,157.27,157.17,1.2985]
[1729000312238,24.43,157.25,157.14,2.766]
[1729000312541,3.1805,157.24,157.14,2.766]
[1729000312844,24.43,157.25,157.14,2.766]
[1729000313043,27.6102,157.25,157.18,3.1813]
[1729000313346,27.6102,157.25,157.14,2.766]
[1729000313542,24.43,157.25,157.14,2.766]
[1729000314044,24.43,157.27,157.14,2.766]
[1729000314239,1.3858,157.29,157.2,24.43]
[1729000314447,0.12518,157.32,157.23,24.43]
[1729000314639,0.12518,157.32,157.24,4.021]
[1729000314835,0.12518,157.32,157.25,24.43]
[1729000315037,0.12518,157.32,157.31,3.1789]
[1729000315234,0.12518,157.32,157.26,11.38]
[1729000315235,7.49482395,157.39,157.3,24.43]
[1729000315439,7.49482395,157.39,157.34,24.43]
[1729000315938,7.49482395,157.39,157.31,24.43]
[1729000316244,7.49482395,157.39,157.34,24.43]
[1729000316641,7.49482395,157.39,157.35,1.292]
[1729000317147,7.49482395,157.39,157.38,3.1775]
[1729000317346,1.4143,157.48,157.36,24.43]
[1729000317645,24.55518,157.51,157.39,24.43]
[1729000317847,27.72998,157.51,157.42,3.1765]
[1729000318043,24.55518,157.51,157.39,24.43]
[1729000318244,0.12518,157.51,157.46,3.1758]
[1729000318443,0.12518,157.51,157.41,35.47]
[1729000320047,0.12518,157.51,157.41,50.67]
[1729000320437,0.12518,157.51,157.5,3.175]
[1729000320849,39.63,157.59,157.5,11.02]
[1729000321043,39.63,157.57,157.47,12.3188]
[1729000321238,39.63,157.57,157.47,1.2988]
[1729000321445,39.63,157.57,157.44,50.65]
[1729000321743,2.7071,157.6,157.44,50.65]
[1729000322041,2.7071,157.6,157.52,3.1744]
[1729000322249,2.7071,157.6,157.5,11.02]
[1729000323149,2.7071,157.6,157.54,3.1741]
[1729000323346,2.7071,157.6,157.5,11.02]
[1729000323844,39.63,157.66,157.53,39.63]
[1729000324050,42.3984,157.66,157.53,39.63]
[1729000324252,42.3984,157.66,157.51,1.3405]
[1729000324253,39.63,157.63,157.51,40.9705]
[1729000324643,39.63,157.61,157.51,1.3405]
[1729000324848,42.8029,157.61,157.53,3.1742]
[1729000325049,39.63,157.58,157.47,1.4119]
[1729000325249,39.63,157.58,157.48,11.02]
[1729000325650,39.63,157.65,157.52,39.63]
[1729000325851,39.63,157.65,157.55,3.1738]
[1729000326146,39.63,157.65,157.54,11.02]
[1729000327044,3.1727,157.62,157.56,3.1737]
[1729000327241,39.63,157.6,157.48,39.63]
[1729000327450,39.63,157.61,157.48,51.9537]
[1729000328040,39.63,157.59,157.48,40.9337]
[1729000328357,39.63,157.59,157.38,3.1398378]
[1729000328358,39.63,157.57,157.41,51.13]
[1729000328545,39.63,157.57,157.43,2.7059]
[1729000328742,2.7469,157.58,157.48,39.63]
[1729000329044,2.7469,157.58,157.55,3.174]